Cogmind - Beta 13 @@@ ROGUE MODE // 2024.03.25 @ 19:00:33 Player: Desymo99 Result: Self-destructed Performance ------------- Evolutions (2) 1000 Regions Visited (4) 800 Robots Destroyed (51) 255 Value Destroyed (1309) 1309 Prototype IDs (0) 0 Alien Tech Used (0) 0 Bonus (0) 0 TOTAL SCORE: 3364 Bonus ------- None Cogmind --------- Core Integrity 491/550 Matter 180/300 Energy 800/800 System Corruption 0% Temperature Cool (0) Movement Hovering (108) Ox1 Location -8/Materials Parts ------- > --- POWER (2) -------- Hybrid Deuterium Engine > --- PROPULSION (5) --- Hover Unit Improved Hover Unit Improved Hover Unit Improved Hover Unit > --- UTILITY (2) ------ Large Storage Unit > --- WEAPON (2) ------- Heavy Assault Rifle > --- INVENTORY (15) --- Hybrid Deuterium Engine Hybrid Deuterium Engine Aluminum Leg Aluminum Leg Aluminum Leg Aluminum Leg Improved Heat Sink Cooling System Sensor Array Improved Terrain Scan Processor Advanced Targeting Computer Heavy Assault Rifle Heavy Assault Rifle Grenade Launcher Peak State ------------ > --- POWER ------------ Hybrid Deuterium Engine Hybrid Deuterium Engine > --- PROPULSION ------- Improved Hover Unit Improved Hover Unit Improved Hover Unit Improved Hover Unit > --- UTILITY ---------- Large Storage Unit Medium Armor Plating > --- WEAPON ----------- Heavy Assault Rifle Heavy Assault Rifle > --- INVENTORY -------- Hybrid Deuterium Engine Hybrid Deuterium Engine Aluminum Leg Aluminum Leg Aluminum Leg Aluminum Leg Hover Unit Improved Heat Sink Cooling System Sensor Array Improved Terrain Scan Processor Advanced Targeting Computer Heavy Assault Rifle Heavy Assault Rifle Grenade Launcher [Rating: 26] Favorites ----------- Power Light Nuclear Core Engine Deuterium Engine Power Core Light Nuclear Core Propulsion Aluminum Leg Leg Aluminum Leg Hover Unit Improved Hover Unit Utility Large Storage Unit Device Improved Heat Sink Storage Large Storage Unit Protection Light Armor Plating Weapon Heavy Assault Rifle Energy Gun Medium Laser Ballistic Gun Heavy Assault Rifle Launcher Grenade Launcher Build | -11 -10 -9 -9 -8 ------- Run | Yrd Mat Mat Min Mat Slots Evolved 4 | . . 2 . 2 Power 1 | . . . . 1 Propulsion 3 | . . 2 . 1 Utility . | . . . . . Weapon . | . . . . . Parts Attached 55 | 5 15 22 4 9 Power 5 | . 2 1 . 2 Engine 4 | . 1 1 . 2 Core 1 | . 1 . . . Reactor . | . . . . . Propulsion 23 | 2 4 10 1 6 Treads . | . . . . . Leg 18 | 2 4 10 1 1 Wheel . | . . . . . Hover 5 | . . . . 5 Flight . | . . . . . Utility 8 | 1 4 2 . 1 Device 1 | . 1 . . . Storage 2 | 1 1 . . . Processor . | . . . . . Hackware . | . . . . . Protection 5 | . 2 2 . 1 Artifact . | . . . . . Weapon 19 | 2 5 9 3 . Energy Gun 1 | 1 . . . . Energy Cannon . | . . . . . Ballistic Gun 14 | 1 4 7 2 . Ballistic Cannon . | . . . . . Launcher 4 | . 1 2 1 . Special Weapon . | . . . . . Impact Weapon . | . . . . . Slashing Weapon . | . . . . . Piercing Weapon . | . . . . . Special Melee Weapon . | . . . . . Unidentified Prototypes . | . . . . . Parts Lost 6 | . . 1 . 5 Power 1 | . . . . 1 Propulsion 3 | . . 1 . 2 Utility 1 | . . . . 1 Weapon 1 | . . . . 1 Highest Loss Streak 4 | . . 1 . 4 To Critical Strikes . | . . . . . Average Slot Usage (%) 97 | . 97 100 100 88 Engine 6 | . 1 7 11 16 Core 6 | . 12 3 . . Leg 34 | . 27 44 44 30 Storage 12 | . 14 11 11 9 Protection 10 | . 11 11 11 8 Ballistic Gun 23 | . 27 21 21 18 Naked Turns . | . . . . . Heaviest Build 49 | 9 32 43 42 49 Greatest Support 40 | 20 20 40 40 40 Greatest Overweight (x) 1 | 1 1 1 1 1 Average Overweight (x) . | . . . 1 1 Largest Inventory Capacity 15 | 8 15 15 15 15 Average Capacity 13 | 7 11 15 15 15 Most Carried 15 | 7 15 15 15 15 Average Carried 12 | 3 9 14 15 14 Final Capacity 15 | 8 15 15 15 15 Final Carried 15 | 7 15 15 15 14 Class Distribution -------------------- 62% | Scavenger-Mutant 37% | Mutant Dominant Class ---------------- Scavenger-Mutant | -10/Materials Scavenger-Mutant | -9/Materials Mutant | -9/Mines Mutant | -8/Materials Resources | -11 -10 -9 -9 -8 ----------- Run | Yrd Mat Mat Min Mat Matter Collected 1402 | 197 340 388 168 309 Remotely . | . . . . . Salvage Created 1762 | . 426 712 212 412 Parts 111 | . 20 54 13 24 Haulers Intercepted 1 | . 1 . . . Recyclers Shooed 2 | . . . 1 1 Parts Field Recycled . | . . . . . Retrieved Matter . | . . . . . Parts Self-Destructed . | . . . . . Prevented . | . . . . . Kills | -11 -10 -9 -9 -8 ------- Run | Yrd Mat Mat Min Mat Combat Hostiles Destroyed 34 | . 8 13 6 7 Guns 31 | . 8 12 4 7 AOE 3 | . . 1 2 . Classes Destroyed 10 | . 5 5 . . Worker 2 | . . 1 1 . Builder 4 | . . 4 . . Tunneler 1 | . . 1 . . Hauler 1 | . 1 . . . Recycler 4 | . 1 1 2 . Mechanic 2 | . . 1 . 1 Watcher 3 | . 2 1 . . Swarmer 9 | . 3 3 3 . Grunt 17 | . 5 5 3 4 Sentry 8 | . . 5 . 3 Best Kill Streak 8 | . 4 8 6 4 Combat Bots Only 4 | . 3 4 3 3 Max Kills in Single Turn 4 | . 1 4 1 2 Gunslinging . | . . . . . Exploded 1 | . . 1 1 . Melee . | . . . . . Uniques/NPCs Destroyed . | . . . . . Combat | -11 -10 -9 -9 -8 -------- Run | Yrd Mat Mat Min Mat Hostile Shots Fired 195 | . 47 62 21 65 Missed 47 | . 6 16 7 18 Damage Taken 1943 | . 472 585 164 722 Core 293 | . 134 67 33 59 Absorbed by Shields . | . . . . . Regen/Repaired (Parts) 97 | . . . . 97 Core Remaining (%) 73 | 100 46 . 75 . Volleys Fired 138 | . 47 40 17 34 Largest 2 | . 2 2 2 2 Hottest 70 | . 70 63 56 46 Shots Fired 275 | . 94 79 34 68 Gun 263 | . 93 73 29 68 Cannon . | . . . . . Launcher 12 | . 1 6 5 . Special . | . . . . . Kinetic 255 | . 85 73 29 68 Thermal 8 | . 8 . . . Explosive 12 | . 1 6 5 . Electromagnetic . | . . . . . Robot Hit Streak 15 | . 13 14 5 15 Robot Miss Streak 12 | . 11 12 2 3 Penetration Max . | . . . . . Secondary Targets 1 | . . 1 . . Max Gunslinging Chain 1 | . . 1 . . Shots Hit Robots 183 | . 59 55 20 49 Core Hits 90 | . 24 35 11 20 Critical Kills . | . . . . . Critical Parts Destroyed 2 | . . . . 2 Critical Strikes 3 | . 1 . . 2 Burn 1 | . 1 . . . Destroy 2 | . . . . 2 Melee Attacks . | . . . . . Impact . | . . . . . Slashing . | . . . . . Piercing . | . . . . . Sneak Attacks . | . . . . . Combat Hostiles . | . . . . . Follow-up Attacks . | . . . . . Damage Inflicted 3149 | . 608 1147 638 756 Guns 2378 | . 608 739 275 756 Cannons . | . . . . . Explosions 771 | . . 408 363 . Melee . | . . . . . Ramming . | . . . . . Kinetic 2304 | . 534 739 275 756 Thermal 74 | . 74 . . . Explosive 771 | . . 408 363 . Electromagnetic . | . . . . . Impact . | . . . . . Slashing . | . . . . . Piercing . | . . . . . Highest Corruption . | . . . . . Average Corruption . | . . . . . Corruption Purged . | . . . . . Corruption Blocked . | . . . . . Overload Shots . | . . . . . Overflow Damage 19 | . . 19 . . Projectiles . | . . . . . Explosions 19 | . . 19 . . Melee . | . . . . . Knockbacks . | . . . . . Impact . | . . . . . Kinetic . | . . . . . Secondary . | . . . . . Self-Inflicted Damage . | . . . . . Shots . | . . . . . Rammed . | . . . . . Targets Rammed . | . . . . . Kicked . | . . . . . Crushed . | . . . . . Highest Temperature 98 | . 98 44 59 50 Average Temperature 23 | . 30 13 23 11 Received Heat Transfer 915 | . 225 255 102 333 Siege Activations . | . . . . . Robots Corrupted . | . . . . . Combat Hostiles . | . . . . . Parts Fried . | . . . . . Impact Corruptions . | . . . . . Robots Melted . | . . . . . Combat Hostiles . | . . . . . Parts Melted 3 | . 3 . . . Heat Transferred 296 | . 296 . . . Parts Sabotaged . | . . . . . Parts Stolen . | . . . . . Parts Stripped . | . . . . . Power Chain Reactions . | . . . . . Alert | -11 -10 -9 -9 -8 ------- Run | Yrd Mat Mat Min Mat Peak Influence 392 | . 258 392 331 351 Initial 152 | . . 20 152 128 Average 153 | . 91 221 213 208 Maximum Alert Level 1 | . 1 1 1 1 Low Security (%) 66 | 100 85 48 49 45 Level 1 33 | . 14 51 50 54 Level 2 . | . . . . . Level 3 . | . . . . . Level 4 . | . . . . . Level 5 . | . . . . . High Security . | . . . . . Max Security . | . . . . . Squads Dispatched 6 | . 1 1 . 4 Investigation 1 | . . . . 1 Extermination . | . . . . . Reinforcement 3 | . 1 1 . 1 Assault . | . . . . . Garrison 2 | . . . . 2 Intercept . | . . . . . Searches Triggered . | . . . . . Construction Impeded 1 | . . 1 . . Haulers Reinforced . | . . . . . Active Scanning Responses . | . . . . . Cargo Convoy Interrupts . | . . . . . Stealth | -11 -10 -9 -9 -8 --------- Run | Yrd Mat Mat Min Mat Distress Signals 4 | . 1 3 . . Communications Jammed . | . . . . . Distress Signals . | . . . . . Times Spotted 61 | . 20 20 6 15 Peak Tracking Total 5 | . 4 4 3 5 Tactical Retreats 3 | . . 3 . . Traps | -11 -10 -9 -9 -8 ------- Run | Yrd Mat Mat Min Mat Traps Triggered 3 | . 2 . . 1 Indirectly . | . . . . . Trap Hack Attempts . | . . . . . Triggered . | . . . . . Disarmed . | . . . . . Reprogrammed . | . . . . . Reused . | . . . . . Traps Extracted . | . . . . . Installed . | . . . . . Triggered . | . . . . . Machines | -11 -10 -9 -9 -8 ---------- Run | Yrd Mat Mat Min Mat Machines Disabled 3 | . . 3 . . Max in Single Turn 1 | . . 1 . . Machines Repaired . | . . . . . Machines Dismantled . | . . . . . Machines Sabotaged . | . . . . . Overloaded Fab Kills . | . . . . . Hacking | -11 -10 -9 -9 -8 --------- Run | Yrd Mat Mat Min Mat Machines Accessed 1 | . . . . 1 Terminals . | . . . . . Fabricators . | . . . . . Repair Stations 1 | . . . . 1 Recycling Units . | . . . . . Scanalyzers . | . . . . . Garrison Access . | . . . . . Total Hacks 4 | . . . . 4 Successful 2 | . . . . 2 Failed 2 | . . . . 2 Catastrophic . | . . . . . Database Lockouts . | . . . . . Manual . | . . . . . Terminals . | . . . . . Fabricators . | . . . . . Repair Stations 4 | . . . . 4 Recycling Units . | . . . . . Scanalyzers . | . . . . . Garrison Access . | . . . . . Terminal Hacks . | . . . . . Fabricator Hacks . | . . . . . Repair Station Hacks 2 | . . . . 2 Scan Component 1 | . . . . 1 Repair 1 | . . . . 1 Recycling Unit Hacks . | . . . . . Scanalyzer . | . . . . . Garrison Access Hacks . | . . . . . Unauthorized Hacks . | . . . . . Terminals . | . . . . . Fabricators . | . . . . . Repair Stations . | . . . . . Recycling Units . | . . . . . Scanalyzers . | . . . . . Garrison Access . | . . . . . Data Cores Recovered . | . . . . . Used . | . . . . . Hacking Detections 1 | . . . . 1 Full Trace Events . | . . . . . Feedback Events . | . . . . . Feedback Blocked . | . . . . . Robot Schematics Acquired . | . . . . . Robots Built . | . . . . . Authchips . | . . . . . Time . | . . . . . Total Robot Build Rating . | . . . . . Part Schematics Acquired . | . . . . . Parts Built . | . . . . . Authchips . | . . . . . Time . | . . . . . Total Part Build Rating . | . . . . . Parts Repaired 1 | . . . . 1 Time 16 | . . . . 16 Parts Recycled . | . . . . . Recycled Matter . | . . . . . Retrieved Matter . | . . . . . Retrieved Components . | . . . . . Parts Scanalyzed . | . . . . . Part Schematics Acquired . | . . . . . Parts Damaged . | . . . . . Bothacking | -11 -10 -9 -9 -8 ------------ Run | Yrd Mat Mat Min Mat Used RIF Installer . | . . . . . Robots Hacked . | . . . . . Non-combat . | . . . . . Combat . | . . . . . Robot Hacks Applied . | . . . . . Relay Couplers Released . | . . . . . Fabnet Peak Effective % . | . . . . . Robots Rewired . | . . . . . Allies Hacked . | . . . . . Hacks Repelled . | . . . . . Allies | -11 -10 -9 -9 -8 -------- Run | Yrd Mat Mat Min Mat Total Allies . | . . . . . Largest Group . | . . . . . Highest-Rated Group . | . . . . . Highest-Rated Ally . | . . . . . Total Orders . | . . . . . Ally Attacks . | . . . . . Total Damage . | . . . . . Kills . | . . . . . Allies Corrupted . | . . . . . Allies Melted . | . . . . . Intel | -11 -10 -9 -9 -8 ------- Run | Yrd Mat Mat Min Mat Robot Analysis Total . | . . . . . Derelict Logs Recovered . | . . . . . Drone Launches . | . . . . . Drone Recoveries . | . . . . . Exploration | -11 -10 -9 -9 -8 ------------- Run | Yrd Mat Mat Min Mat Turns Passed 2457 | 67 1117 653 257 363 Spaces Moved 1147 | 48 590 285 106 118 Core 7 | 7 . . . . Treads . | . . . . . Legs 1117 | 41 590 285 106 95 Wheels . | . . . . . Hover 23 | . . . . 23 Flight . | . . . . . Fastest Speed 50 | 50 120 120 190 104 Average Speed 153 | 111 148 149 190 173 Slowest Speed 190 | 120 190 190 190 190 Overloaded Moves . | . . . . . Propulsion Burnouts . | . . . . . Robots Hopped . | . . . . . Cave-ins Triggered . | . . . . . Exploration Rate (%) 25 | 4 53 27 30 14 Regions Visited 4 Branch Regions 1 Pre-discovered Areas . | . . . . . Known Exits Taken . | . . . . . Unknown Exits Taken 4 | 1 1 1 1 . Scrap Searched 1 | . . . 1 . Spaces Dug 8 | . . 3 5 . Terrain Destroyed 74 | . 10 31 33 . Melee . | . . . . . Projectile . | . . . . . AOE 74 | . 10 31 33 . Terrain Rammed . | . . . . . Walls Destroyed . | . . . . . Machines Disabled . | . . . . . Actions | -11 -10 -9 -9 -8 --------- Run | Yrd Mat Mat Min Mat Total 1577 | 59 743 440 128 207 Wait 176 | . 63 74 . 39 Move 1143 | 47 589 284 105 118 Hop . | . . . . . Pick Up 32 | 7 17 5 . 3 Fast Attach 14 | 5 6 . . 3 Attach 5 | . 1 3 . 1 Detach . | . . . . . Swap 36 | . 8 19 4 5 Drop 33 | . 12 15 2 4 Fire 138 | . 47 40 17 34 Melee . | . . . . . Ram . | . . . . . Kick . | . . . . . Crush . | . . . . . Escape Stasis . | . . . . . Rewire . | . . . . . Trap . | . . . . . Miscellaneous . | . . . . . Route ------- -11/Scrapyard -10/Materials (discovered 2 exits: [*Mat x2]) -9/Materials -9/Mines -8/Materials History --------- Turn | Location | Event 3 | -11/Scrapyard | Discovered new exit (range 16) 68 | -11/Scrapyard | Entered Materials 301 | -10/Materials | Core integrity fell below 50% 458 | -10/Materials | Discovered new exit (range 16) 572 | -10/Materials | Discovered new exit (range 4) 743 | -10/Materials | Build established: Scavenger-Mutant 1185 | -10/Materials | Entered another Materials area 1185 | -9/Materials | Evolved 2 slots: Propulsion x2 1689 | -9/Materials | Discovered new exit (range 12) 1838 | -9/Materials | Entered Mines 1865 | -9/Mines | Found a hidden stash of uninstalled traps 2027 | -9/Mines | Build established: Mutant 2085 | -9/Mines | Discovered new exit (range 6) 2095 | -9/Mines | Entered Materials 2095 | -8/Materials | Evolved 2 slots: Power x1, Propulsion x1 2212 | -8/Materials | Repaired Med. Armor Plating 2297 | -8/Materials | Garrison activated, responded to threat 2448 | -8/Materials | Garrison activated, responded to threat 2458 | -8/Materials | Self-destructed Last Messages --------------- 02430_ R-06 Scavenger collects Lgt. Deuterium Engine. 02431_ K-01 Serf collects debris. 02433_ R-06 Scavenger collects Ion Engine. 02433_ T-07 Excavator is excavating. 02435_ U-05 Engineer lays Concrete. 02435_ K-01 Serf collects debris. 02439_ T-07 Excavator is excavating. 02441_ U-05 Engineer lays Concrete. 02441_ U-05 Engineer builds a Wall. 02443_ T-07 Excavator is excavating. 02445_ U-05 Engineer lays Concrete. 02445_ Imp. Hover Unit destroyed. 02448_ G-47 Trooper calls for garrison reinforcements. 02448_ ALERT: Activating Garrison Access M001. 02448_ G-47 Trooper destroyed. 02450_ K-01 Serf collects debris. 02455_ G-47 Trooper destroyed. 02456_ Med. Armor Plating destroyed. 02456_ Hvy. Assault Rifle destroyed. Map ----- +----------------------------------------------------+ | ?????????????????######+#### #?????????????????? | | ??????????????????????# #??# #####?????????????? | | ??????????????????????# #??# ??????????????? | | ??????????????????????# #??# ???????????????? | | ????????????????????###+#### ????????????????? | | ????????????????????# # ##????????????????? | | ????????????????????# """ # #?????????????????? | | ????????????????????# "R #! #?????????????????? | | ????????????????????# """ !![ +?????????????????? | | ????????????????????# "" *# = #?????????????????? | | ????????????????????# #= #?????????????????? | | ????????????????????######## ##????????????????? | | ?????????################## #????????????????? | | ????????? #????????????????? | | ?????????? +????????????????? | | ????????????""" """" #????????????????? | | ???????????"""" """" #### #????????????????? | | ????????" """" """" #??#######????????????????? | | ??????? #?????????????????????????? | | ??????? #?????#######?????????????? | | ??????? ####### #?????????????? | | ??????? =* % #?????????????? | | ??????? * k #?????????????? | | ??????? ** [Y= #?????????????? | | ??????? / ##########u### #?????????????? | | ????????? ????????#@[u[## ####???????????? | | ?????????"" T ?????????# !=u## !##??????????? | | ??????????" ??????????# tu## !#??????????? | | ??????????"? ???????????# ## !#??????????? | | ????????????????????????# ## !#??????????? | | ????????????????????????# ## !#??????????? | | ????????????????????????# ## !##??????????? | | ????????????????????????# ## ####???????????? | | ????????????????????????# ## #??????????????? | | ????????????????????????###/### #??????????????? | | ???????????????????????????Y ?+ #??????????????? | | ??????????????????????????? "?# ??????????????? | | ???????????????????????????G"?# ??????????????? | | ???????????????????????????" ?# ??????????????? | | ??????????????????????????????# #??????????????? | | ??????????????????????????????# #??????????????? | | ??????????????????????????????? ???????????????? | | ??????????????????????????????? ???????????????? | | ??????????????????????????????? ???????????????? | | ?????????????????????????????????????????????????? | | ?????????????????????????????????????????????????? | | ?????????????????????????????????????????????????? | | ?????????????????????????????????????????????????? | | ?????????????????????????????????????????????????? | | ?????????????????????????????????????????????????? | +----------------------------------------------------+ Best States ------------- Heat Dissipation 39 Energy Generation 15 Energy Capacity 1500 Matter Stores 300 Matter Capacity 300 Sight Range 16 Terrain Scan Density 10 Armor Coverage 225 Evasion (%) 55 Item Schematics ----------------- None Robot Schematics ------------------ None Fabricated ------------ Nothing Alien Tech Used ----------------- None Achievements -------------- None Challenges ------------ None Game ------ Seed PhysicsSingularitySabre Manual? 0 Play Time 00:20:19 Cumulative 23.7 hours Start 2024.03.24 @ 15:35:10 End 2024.03.25 @ 19:00:33 Sessions 3 Manual Loads 0 Difficulty Rogue Special Mode None Game No. 35 Rogue 35 Adventurer 0 Explorer 0 Win Type - Total 0 Types 0/0/0/0/0/0/0/0/0 Lore% 23 Gallery% 26 Achievement% 24 Wizard Run 0 Options --------- Layout 1 ASCII 0 Keyboard 1 Movement Numpad Keybinds 0 Fullscreen 1 Font 16/SmallcapsGlow Map View 55x38 Zoom Use 0% Tactical HUD 1 Map Filters NONE Filters NONE Steam 1 RUN: 75868859-a3c5-4578-9e7d-d044f201c2b5